Workbook

Sheet 試算
C2: 世帯人数 | D2: 2 | E2: 人
B4: ■企業年金(800万円)を65～79歳の20年間で年金として受け取った場合（年金の運用は考慮していない）
E6: 1 | F6: 2 | G6: 3 | H6: 4 | I6: 5 | J6: 6 | K6: 7 | L6: 8 | M6: 9 | N6: 10 | O6: 11 | P6: 12 | Q6: 13 | R6: 14 | S6: 15 | T6: 16 | U6: 17 | V6: 18 | W6: 19 | X6: 20
D7: 2024 | E7: 2025 | F7: 2026 | G7: 2027 | H7: 2028 | I7: 2029 | J7: 2030 | K7: 2031 | L7: 2032 | M7: 2033 | N7: 2034 | O7: 2035 | P7: 2036 | Q7: 2037 | R7: 2038 | S7: 2039 | T7: 2040 | U7: 2041 | V7: 2042 | W7: 2043 | X7: 2044
D8: 59 | E8: 60 | F8: 61 | G8: 62 | H8: 63 | I8: 64 | J8: 65 | K8: 66 | L8: 67 | M8: 68 | N8: 69 | O8: 70 | P8: 71 | Q8: 72 | R8: 73 | S8: 74 | T8: 75 | U8: 76 | V8: 77 | W8: 78 | X8: 79
B10: 収入 | C10: 事業(営業等)
C11: 事業(農業)
C12: 不動産
C13: 配当
C14: 給与 | D14: 6500000 | E14: 4500000 | F14: 4500000 | G14: 4500000 | H14: 4500000 | I14: 4500000 | J14: 0 | K14: 0 | L14: 0 | M14: 0 | N14: 0 | O14: 0 | P14: 0 | Q14: 0 | R14: 0 | S14: 0 | T14: 0 | U14: 0 | V14: 0 | W14: 0 | X14: 0
C15: 雑収入(国民年金) | J15: 1900000 | K15: 1900000 | L15: 1900000 | M15: 1900000 | N15: 1900000 | O15: 1900000 | P15: 1900000 | Q15: 1900000 | R15: 1900000 | S15: 1900000 | T15: 1900000 | U15: 1900000 | V15: 1900000 | W15: 1900000 | X15: 1900000
C16: 雑収入(厚生年金)
C17: 雑収入(企業年金) | E17: 400000 | F17: 400000 | G17: 400000 | H17: 400000 | I17: 400000 | J17: 400000 | K17: 400000 | L17: 400000 | M17: 400000 | N17: 400000 | O17: 400000 | P17: 400000 | Q17: 400000 | R17: 400000 | S17: 400000 | T17: 400000 | U17: 400000 | V17: 400000 | W17: 400000 | X17: 400000
C18: 雑収入(業務)
C19: 雑収入(その他)
C20: 総合譲渡(短期)
C21: 総合譲渡(長期)
C22: 一時
C23: 年収合計 | D23: =SUM(D10:D22) -> 6500000 | E23: 4900000 | F23: 4900000 | G23: 4900000 | H23: 4900000 | I23: 4900000 | J23: 2300000 | K23: 2300000 | L23: 2300000 | M23: 2300000 | N23: 2300000 | O23: 2300000 | P23: 2300000 | Q23: 2300000 | R23: 2300000 | S23: 2300000 | T23: 2300000 | U23: 2300000 | V23: 2300000 | W23: 2300000 | X23: 2300000
B25: 控除 | C25: 給与所得控除 | D25: =KYUYO_SHOTOKU_KOUJO(D14) -> 440000 | E25: =KYUYO_SHOTOKU_KOUJO(E14) -> 440000 | F25: =KYUYO_SHOTOKU_KOUJO(F14) -> 440000 | G25: =KYUYO_SHOTOKU_KOUJO(G14) -> 440000 | H25: =KYUYO_SHOTOKU_KOUJO(H14) -> 440000 | I25: =KYUYO_SHOTOKU_KOUJO(I14) -> 440000 | J25: =KYUYO_SHOTOKU_KOUJO(J14) -> 0 | K25: =KYUYO_SHOTOKU_KOUJO(K14) -> 0 | L25: =KYUYO_SHOTOKU_KOUJO(L14) -> 0 | M25: =KYUYO_SHOTOKU_KOUJO(M14) -> 0 | N25: =KYUYO_SHOTOKU_KOUJO(N14) -> 0 | O25: =KYUYO_SHOTOKU_KOUJO(O14) -> 0 | P25: =KYUYO_SHOTOKU_KOUJO(P14) -> 0 | Q25: =KYUYO_SHOTOKU_KOUJO(Q14) -> 0 | R25: =KYUYO_SHOTOKU_KOUJO(R14) -> 0 | S25: =KYUYO_SHOTOKU_KOUJO(S14) -> 0 | T25: =KYUYO_SHOTOKU_KOUJO(T14) -> 0 | U25: =KYUYO_SHOTOKU_KOUJO(U14) -> 0 | V25: =KYUYO_SHOTOKU_KOUJO(V14) -> 0 | W25: =KYUYO_SHOTOKU_KOUJO(W14) -> 0 | X25: =KYUYO_SHOTOKU_KOUJO(X14) -> 0
C26: 公的年金控除 | D26: =SUM(D15:D17)-D35 -> 0 | E26: 400000 | F26: 400000 | G26: 400000 | H26: 400000 | I26: 400000 | J26: 850000 | K26: 850000 | L26: 850000 | M26: 850000 | N26: 850000 | O26: 850000 | P26: 850000 | Q26: 850000 | R26: 850000 | S26: 850000 | T26: 850000 | U26: 850000 | V26: 850000 | W26: 850000 | X26: 850000
C27: 雑収入(業務)経費
C28: その他控除
B30: 所得 | C30: 事業(営業等)
C31: 事業(農業)
C32: 不動産
C33: 配当
C34: 給与 | D34: =D14-D25 -> 6060000 | E34: 4060000 | F34: 4060000 | G34: 4060000 | H34: 4060000 | I34: 4060000 | J34: 0 | K34: 0 | L34: 0 | M34: 0 | N34: 0 | O34: 0 | P34: 0 | Q34: 0 | R34: 0 | S34: 0 | T34: 0 | U34: 0 | V34: 0 | W34: 0 | X34: 0
C35: 雑所得(公的年金等) | D35: =KOUTEKI_NENKIN_SHOTOKU(SUM(D15:D17),D30+D37,D8) -> 0 | E35: =KOUTEKI_NENKIN_SHOTOKU(SUM(E15:E17),E30+E37,E8) -> 0 | F35: =KOUTEKI_NENKIN_SHOTOKU(SUM(F15:F17),F30+F37,F8) -> 0 | G35: =KOUTEKI_NENKIN_SHOTOKU(SUM(G15:G17),G30+G37,G8) -> 0 | H35: =KOUTEKI_NENKIN_SHOTOKU(SUM(H15:H17),H30+H37,H8) -> 0 | I35: =KOUTEKI_NENKIN_SHOTOKU(SUM(I15:I17),I30+I37,I8) -> 0 | J35: =KOUTEKI_NENKIN_SHOTOKU(SUM(J15:J17),J30+J37,J8) -> 1450000 | K35: =KOUTEKI_NENKIN_SHOTOKU(SUM(K15:K17),K30+K37,K8) -> 1450000 | L35: =KOUTEKI_NENKIN_SHOTOKU(SUM(L15:L17),L30+L37,L8) -> 1450000 | M35: =KOUTEKI_NENKIN_SHOTOKU(SUM(M15:M17),M30+M37,M8) -> 1450000 | N35: =KOUTEKI_NENKIN_SHOTOKU(SUM(N15:N17),N30+N37,N8) -> 1450000 | O35: =KOUTEKI_NENKIN_SHOTOKU(SUM(O15:O17),O30+O37,O8) -> 1450000 | P35: =KOUTEKI_NENKIN_SHOTOKU(SUM(P15:P17),P30+P37,P8) -> 1450000 | Q35: =KOUTEKI_NENKIN_SHOTOKU(SUM(Q15:Q17),Q30+Q37,Q8) -> 1450000 | R35: =KOUTEKI_NENKIN_SHOTOKU(SUM(R15:R17),R30+R37,R8) -> 1450000 | S35: =KOUTEKI_NENKIN_SHOTOKU(SUM(S15:S17),S30+S37,S8) -> 1450000 | T35: =KOUTEKI_NENKIN_SHOTOKU(SUM(T15:T17),T30+T37,T8) -> 1450000 | U35: =KOUTEKI_NENKIN_SHOTOKU(SUM(U15:U17),U30+U37,U8) -> 1450000 | V35: =KOUTEKI_NENKIN_SHOTOKU(SUM(V15:V17),V30+V37,V8) -> 1450000 | W35: =KOUTEKI_NENKIN_SHOTOKU(SUM(W15:W17),W30+W37,W8) -> 1450000 | X35: =KOUTEKI_NENKIN_SHOTOKU(SUM(X15:X17),X30+X37,X8) -> 1450000
C36: 雑所得(業務)
C37: 雑所得(その他) | D37: =MAX(0,D18-D27-D28) -> 0 | E37: 0 | F37: 0 | G37: 0 | H37: 0 | I37: 0 | J37: 0 | K37: 0 | L37: 0 | M37: 0 | N37: 0 | O37: 0 | P37: 0 | Q37: 0 | R37: 0 | S37: 0 | T37: 0 | U37: 0 | V37: 0 | W37: 0 | X37: 0
C38: 総合譲渡・一時 | D38: =D20+(D21+D22)/2 -> 0 | E38: 0 | F38: 0 | G38: 0 | H38: 0 | I38: 0 | J38: 0 | K38: 0 | L38: 0 | M38: 0 | N38: 0 | O38: 0 | P38: 0 | Q38: 0 | R38: 0 | S38: 0 | T38: 0 | U38: 0 | V38: 0 | W38: 0 | X38: 0
C39: 所得合計 | D39: =SUM(D30:D38) -> 6060000 | E39: 4060000 | F39: 4060000 | G39: 4060000 | H39: 4060000 | I39: 4060000 | J39: 1450000 | K39: 1450000 | L39: 1450000 | M39: 1450000 | N39: 1450000 | O39: 1450000 | P39: 1450000 | Q39: 1450000 | R39: 1450000 | S39: 1450000 | T39: 1450000 | U39: 1450000 | V39: 1450000 | W39: 1450000 | X39: 1450000
B41: 配偶者 | C41: 配偶者収入(給与) | D41: 0 | E41: 0 | F41: 0 | G41: 0 | H41: 0 | I41: 0 | J41: 0 | K41: 0 | L41: 0 | M41: 0 | N41: 0 | O41: 0 | P41: 0 | Q41: 0 | R41: 0 | S41: 0 | T41: 0 | U41: 0 | V41: 0 | W41: 0 | X41: 0
C42: 配偶者収入(年金) | D42: 0 | E42: 0 | F42: 0 | G42: 0 | H42: 0 | I42: 0 | J42: 800000 | K42: 800000 | L42: 800000 | M42: 800000 | N42: 800000 | O42: 800000 | P42: 800000 | Q42: 800000 | R42: 800000 | S42: 800000 | T42: 800000 | U42: 800000 | V42: 800000 | W42: 800000 | X42: 800000
C43: 配偶者社会保険料 | D43: 0 | E43: 0 | F43: 0 | G43: 0 | H43: 0 | I43: 0 | J43: 0 | K43: 0 | L43: 0 | M43: 0 | N43: 0 | O43: 0 | P43: 0 | Q43: 0 | R43: 0 | S43: 0 | T43: 0 | U43: 0 | V43: 0 | W43: 0 | X43: 0
C44: 配偶者所得(給与) | D44: =D41-KYUYO_SHOTOKU_KOUJO(D41) -> 0 | E44: =E41-KYUYO_SHOTOKU_KOUJO(E41) -> 0 | F44: =F41-KYUYO_SHOTOKU_KOUJO(F41) -> 0 | G44: =G41-KYUYO_SHOTOKU_KOUJO(G41) -> 0 | H44: =H41-KYUYO_SHOTOKU_KOUJO(H41) -> 0 | I44: =I41-KYUYO_SHOTOKU_KOUJO(I41) -> 0 | J44: =J41-KYUYO_SHOTOKU_KOUJO(J41) -> 0 | K44: =K41-KYUYO_SHOTOKU_KOUJO(K41) -> 0 | L44: =L41-KYUYO_SHOTOKU_KOUJO(L41) -> 0 | M44: =M41-KYUYO_SHOTOKU_KOUJO(M41) -> 0 | N44: =N41-KYUYO_SHOTOKU_KOUJO(N41) -> 0 | O44: =O41-KYUYO_SHOTOKU_KOUJO(O41) -> 0 | P44: =P41-KYUYO_SHOTOKU_KOUJO(P41) -> 0 | Q44: =Q41-KYUYO_SHOTOKU_KOUJO(Q41) -> 0 | R44: =R41-KYUYO_SHOTOKU_KOUJO(R41) -> 0 | S44: =S41-KYUYO_SHOTOKU_KOUJO(S41) -> 0 | T44: =T41-KYUYO_SHOTOKU_KOUJO(T41) -> 0 | U44: =U41-KYUYO_SHOTOKU_KOUJO(U41) -> 0 | V44: =V41-KYUYO_SHOTOKU_KOUJO(V41) -> 0 | W44: =W41-KYUYO_SHOTOKU_KOUJO(W41) -> 0 | X44: =X41-KYUYO_SHOTOKU_KOUJO(X41) -> 0
C45: 配偶者所得(年金) | D45: =KOUTEKI_NENKIN_SHOTOKU(D42,D42,D8) -> 0 | E45: =KOUTEKI_NENKIN_SHOTOKU(E42,E42,E8) -> 0 | F45: =KOUTEKI_NENKIN_SHOTOKU(F42,F42,F8) -> 0 | G45: =KOUTEKI_NENKIN_SHOTOKU(G42,G42,G8) -> 0 | H45: =KOUTEKI_NENKIN_SHOTOKU(H42,H42,H8) -> 0 | I45: =KOUTEKI_NENKIN_SHOTOKU(I42,I42,I8) -> 0 | J45: =KOUTEKI_NENKIN_SHOTOKU(J42,J42,J8) -> 0 | K45: =KOUTEKI_NENKIN_SHOTOKU(K42,K42,K8) -> 0 | L45: =KOUTEKI_NENKIN_SHOTOKU(L42,L42,L8) -> 0 | M45: =KOUTEKI_NENKIN_SHOTOKU(M42,M42,M8) -> 0 | N45: =KOUTEKI_NENKIN_SHOTOKU(N42,N42,N8) -> 0 | O45: =KOUTEKI_NENKIN_SHOTOKU(O42,O42,O8) -> 0 | P45: =KOUTEKI_NENKIN_SHOTOKU(P42,P42,P8) -> 0 | Q45: =KOUTEKI_NENKIN_SHOTOKU(Q42,Q42,Q8) -> 0 | R45: =KOUTEKI_NENKIN_SHOTOKU(R42,R42,R8) -> 0 | S45: =KOUTEKI_NENKIN_SHOTOKU(S42,S42,S8) -> 0 | T45: =KOUTEKI_NENKIN_SHOTOKU(T42,T42,T8) -> 0 | U45: =KOUTEKI_NENKIN_SHOTOKU(U42,U42,U8) -> 0 | V45: =KOUTEKI_NENKIN_SHOTOKU(V42,V42,V8) -> 0 | W45: =KOUTEKI_NENKIN_SHOTOKU(W42,W42,W8) -> 0 | X45: =KOUTEKI_NENKIN_SHOTOKU(X42,X42,X8) -> 0
C46: 配偶者所得(合計) | D46: =SUM(D44:D45) -> 0 | E46: =SUM(E44:E45) -> 0 | F46: 0 | G46: 0 | H46: 0 | I46: 0 | J46: 0 | K46: 0 | L46: 0 | M46: 0 | N46: 0 | O46: 0 | P46: 0 | Q46: 0 | R46: 0 | S46: 0 | T46: 0 | U46: 0 | V46: 0 | W46: 0 | X46: 0
C47: 配偶者前年住民税 | D47: =D46*0.1 -> 0 | E47: =E46*0.1 -> 0 | F47: 0 | G47: 0 | H47: 0 | I47: 0 | J47: 0 | K47: 0 | L47: 0 | M47: 0 | N47: 0 | O47: 0 | P47: 0 | Q47: 0 | R47: 0 | S47: 0 | T47: 0 | U47: 0 | V47: 0 | W47: 0 | X47: 0
B49: その他 | C49: 医療費
C50: ふるさと納税
B52: 所得 | C52: 社会保険料控除(企業健康保険) | F52: 0 | G52: 0 | H52: 0 | I52: 0 | J52: 0 | K52: 0 | L52: 0 | M52: 0 | N52: 0 | O52: 0 | P52: 0 | Q52: 0 | R52: 0 | S52: 0 | T52: 0 | U52: 0 | V52: 0 | W52: 0 | X52: 0 | Y52: =SUM(E52:X52) -> 0
B53: 控除 | C53: 社会保険料控除(国民健康保険) | E53: =KOKUMIN_KENKOU_HOKEN(D39,$D$2,E8) -> 843703 | F53: =KOKUMIN_KENKOU_HOKEN(E39,$D$2,F8) -> 592703 | G53: =KOKUMIN_KENKOU_HOKEN(F39,$D$2,G8) -> 592703 | H53: =KOKUMIN_KENKOU_HOKEN(G39,$D$2,H8) -> 592703 | I53: =KOKUMIN_KENKOU_HOKEN(H39,$D$2,I8) -> 592703 | J53: =KOKUMIN_KENKOU_HOKEN(I39,$D$2,J8) -> 501576 | K53: =KOKUMIN_KENKOU_HOKEN(J39,$D$2,K8) -> 223611 | L53: =KOKUMIN_KENKOU_HOKEN(K39,$D$2,L8) -> 223611 | M53: =KOKUMIN_KENKOU_HOKEN(L39,$D$2,M8) -> 223611 | N53: =KOKUMIN_KENKOU_HOKEN(M39,$D$2,N8) -> 223611 | O53: =KOKUMIN_KENKOU_HOKEN(N39,$D$2,O8) -> 223611 | P53: =KOKUMIN_KENKOU_HOKEN(O39,$D$2,P8) -> 223611 | Q53: =KOKUMIN_KENKOU_HOKEN(P39,$D$2,Q8) -> 223611 | R53: =KOKUMIN_KENKOU_HOKEN(Q39,$D$2,R8) -> 223611 | S53: =KOKUMIN_KENKOU_HOKEN(R39,$D$2,S8) -> 223611 | T53: =KOKUMIN_KENKOU_HOKEN(S39,$D$2,T8) -> 223611 | U53: =KOKUMIN_KENKOU_HOKEN(T39,$D$2,U8) -> 223611 | V53: =KOKUMIN_KENKOU_HOKEN(U39,$D$2,V8) -> 223611 | W53: =KOKUMIN_KENKOU_HOKEN(V39,$D$2,W8) -> 223611 | X53: =KOKUMIN_KENKOU_HOKEN(W39,$D$2,X8) -> 223611 | Y53: =SUM(E53:X53) -> 6846645
C54: 社会保険料控除(介護保険) | E54: =KAIGO_HOKEN(E39,E8,D75,D47) -> 0 | F54: =KAIGO_HOKEN(F39,F8,E75,E47) -> 0 | G54: =KAIGO_HOKEN(G39,G8,F75,F47) -> 0 | H54: =KAIGO_HOKEN(H39,H8,G75,G47) -> 0 | I54: =KAIGO_HOKEN(I39,I8,H75,H47) -> 0 | J54: =KAIGO_HOKEN(J39,J8,I75,I47) -> 96000 | K54: =KAIGO_HOKEN(K39,K8,J75,J47) -> 52608 | L54: =KAIGO_HOKEN(L39,L8,K75,K47) -> 96000 | M54: =KAIGO_HOKEN(M39,M8,L75,L47) -> 96000 | N54: =KAIGO_HOKEN(N39,N8,M75,M47) -> 96000 | O54: =KAIGO_HOKEN(O39,O8,N75,N47) -> 96000 | P54: =KAIGO_HOKEN(P39,P8,O75,O47) -> 96000 | Q54: =KAIGO_HOKEN(Q39,Q8,P75,P47) -> 96000 | R54: =KAIGO_HOKEN(R39,R8,Q75,Q47) -> 96000 | S54: =KAIGO_HOKEN(S39,S8,R75,R47) -> 96000 | T54: =KAIGO_HOKEN(T39,T8,S75,S47) -> 96000 | U54: =KAIGO_HOKEN(U39,U8,T75,T47) -> 96000 | V54: =KAIGO_HOKEN(V39,V8,U75,U47) -> 96000 | W54: =KAIGO_HOKEN(W39,W8,V75,V47) -> 96000 | X54: =KAIGO_HOKEN(X39,X8,W75,W47) -> 96000 | Y54: 1396608
C55: その他社会保険料控除
C56: 小規模企業共済等掛金控除
C57: 生命保険料控除
C58: 地震保険料控除
C59: 寡婦､ ひとり親控除
C60: 勤労学生、障害者控除
C61: 配偶者控除 | D61: =HAIGUSHA_KOUJO(D39,D8) -> 380000 | E61: =HAIGUSHA_KOUJO(E39,E8) -> 380000 | F61: =HAIGUSHA_KOUJO(F39,F8) -> 380000 | G61: =HAIGUSHA_KOUJO(G39,G8) -> 380000 | H61: =HAIGUSHA_KOUJO(H39,H8) -> 380000 | I61: =HAIGUSHA_KOUJO(I39,I8) -> 380000 | J61: =HAIGUSHA_KOUJO(J39,J8) -> 380000 | K61: =HAIGUSHA_KOUJO(K39,K8) -> 380000 | L61: =HAIGUSHA_KOUJO(L39,L8) -> 380000 | M61: =HAIGUSHA_KOUJO(M39,M8) -> 380000 | N61: =HAIGUSHA_KOUJO(N39,N8) -> 380000 | O61: =HAIGUSHA_KOUJO(O39,O8) -> 480000 | P61: =HAIGUSHA_KOUJO(P39,P8) -> 480000 | Q61: =HAIGUSHA_KOUJO(Q39,Q8) -> 480000 | R61: =HAIGUSHA_KOUJO(R39,R8) -> 480000 | S61: =HAIGUSHA_KOUJO(S39,S8) -> 480000 | T61: =HAIGUSHA_KOUJO(T39,T8) -> 480000 | U61: =HAIGUSHA_KOUJO(U39,U8) -> 480000 | V61: =HAIGUSHA_KOUJO(V39,V8) -> 480000 | W61: =HAIGUSHA_KOUJO(W39,W8) -> 480000 | X61: =HAIGUSHA_KOUJO(X39,X8) -> 480000
C62: 配偶者特別控除 | D62: =HAIGUSHA_TOKUBETU_KOUJO(D39,D46) -> 0 | E62: =HAIGUSHA_TOKUBETU_KOUJO(E39,E46) -> 0 | F62: =HAIGUSHA_TOKUBETU_KOUJO(F39,F46) -> 0 | G62: =HAIGUSHA_TOKUBETU_KOUJO(G39,G46) -> 0 | H62: =HAIGUSHA_TOKUBETU_KOUJO(H39,H46) -> 0 | I62: =HAIGUSHA_TOKUBETU_KOUJO(I39,I46) -> 0 | J62: =HAIGUSHA_TOKUBETU_KOUJO(J39,J46) -> 0 | K62: =HAIGUSHA_TOKUBETU_KOUJO(K39,K46) -> 0 | L62: =HAIGUSHA_TOKUBETU_KOUJO(L39,L46) -> 0 | M62: =HAIGUSHA_TOKUBETU_KOUJO(M39,M46) -> 0 | N62: =HAIGUSHA_TOKUBETU_KOUJO(N39,N46) -> 0 | O62: =HAIGUSHA_TOKUBETU_KOUJO(O39,O46) -> 0 | P62: =HAIGUSHA_TOKUBETU_KOUJO(P39,P46) -> 0 | Q62: =HAIGUSHA_TOKUBETU_KOUJO(Q39,Q46) -> 0 | R62: =HAIGUSHA_TOKUBETU_KOUJO(R39,R46) -> 0 | S62: =HAIGUSHA_TOKUBETU_KOUJO(S39,S46) -> 0 | T62: =HAIGUSHA_TOKUBETU_KOUJO(T39,T46) -> 0 | U62: =HAIGUSHA_TOKUBETU_KOUJO(U39,U46) -> 0 | V62: =HAIGUSHA_TOKUBETU_KOUJO(V39,V46) -> 0 | W62: =HAIGUSHA_TOKUBETU_KOUJO(W39,W46) -> 0 | X62: =HAIGUSHA_TOKUBETU_KOUJO(X39,X46) -> 0
C63: 扶養控除
C64: 基礎控除 | D64: =KISO_KOUJO(D39) -> 480000 | E64: =KISO_KOUJO(E39) -> 480000 | F64: =KISO_KOUJO(F39) -> 480000 | G64: =KISO_KOUJO(G39) -> 480000 | H64: =KISO_KOUJO(H39) -> 480000 | I64: =KISO_KOUJO(I39) -> 480000 | J64: =KISO_KOUJO(J39) -> 480000 | K64: =KISO_KOUJO(K39) -> 480000 | L64: =KISO_KOUJO(L39) -> 480000 | M64: =KISO_KOUJO(M39) -> 480000 | N64: =KISO_KOUJO(N39) -> 480000 | O64: =KISO_KOUJO(O39) -> 480000 | P64: =KISO_KOUJO(P39) -> 480000 | Q64: =KISO_KOUJO(Q39) -> 480000 | R64: =KISO_KOUJO(R39) -> 480000 | S64: =KISO_KOUJO(S39) -> 480000 | T64: =KISO_KOUJO(T39) -> 480000 | U64: =KISO_KOUJO(U39) -> 480000 | V64: =KISO_KOUJO(V39) -> 480000 | W64: =KISO_KOUJO(W39) -> 480000 | X64: =KISO_KOUJO(X39) -> 480000
C65: 雑損控除
C66: 医療費控除 | D66: =IRYOUHI_KOUJO(D49,D39) -> 0 | E66: =IRYOUHI_KOUJO(E49,E39) -> 0 | F66: =IRYOUHI_KOUJO(F49,F39) -> 0 | G66: =IRYOUHI_KOUJO(G49,G39) -> 0 | H66: =IRYOUHI_KOUJO(H49,H39) -> 0 | I66: =IRYOUHI_KOUJO(I49,I39) -> 0 | J66: =IRYOUHI_KOUJO(J49,J39) -> 0 | K66: =IRYOUHI_KOUJO(K49,K39) -> 0 | L66: =IRYOUHI_KOUJO(L49,L39) -> 0 | M66: =IRYOUHI_KOUJO(M49,M39) -> 0 | N66: =IRYOUHI_KOUJO(N49,N39) -> 0 | O66: =IRYOUHI_KOUJO(O49,O39) -> 0 | P66: =IRYOUHI_KOUJO(P49,P39) -> 0 | Q66: =IRYOUHI_KOUJO(Q49,Q39) -> 0 | R66: =IRYOUHI_KOUJO(R49,R39) -> 0 | S66: =IRYOUHI_KOUJO(S49,S39) -> 0 | T66: =IRYOUHI_KOUJO(T49,T39) -> 0 | U66: =IRYOUHI_KOUJO(U49,U39) -> 0 | V66: =IRYOUHI_KOUJO(V49,V39) -> 0 | W66: =IRYOUHI_KOUJO(W49,W39) -> 0 | X66: =IRYOUHI_KOUJO(X49,X39) -> 0
C67: 寄付金控除 | D67: =MAX(D50-2000,0) -> 0 | E67: =MAX(E50-2000,0) -> 0 | F67: 0 | G67: 0 | H67: 0 | I67: 0 | J67: 0 | K67: 0 | L67: 0 | M67: 0 | N67: 0 | O67: 0 | P67: 0 | Q67: 0 | R67: 0 | S67: 0 | T67: 0 | U67: 0 | V67: 0 | W67: 0 | X67: 0
C68: 控除合計 | D68: =SUM(D52:D67) -> 860000 | E68: 1703703 | F68: 1452703 | G68: 1452703 | H68: 1452703 | I68: 1452703 | J68: 1457576 | K68: 1136219 | L68: 1179611 | M68: 1179611 | N68: 1179611 | O68: 1279611 | P68: 1279611 | Q68: 1279611 | R68: 1279611 | S68: 1279611 | T68: 1279611 | U68: 1279611 | V68: 1279611 | W68: 1279611 | X68: 1279611
B70: 課税対象 | C70: 課税対象 | D70: =ROUNDDOWN(MAX(D39-D68,0),-3) -> 5200000 | E70: 2356000 | F70: 2607000 | G70: 2607000 | H70: 2607000 | I70: 2607000 | J70: 0 | K70: 313000 | L70: 270000 | M70: 270000 | N70: 270000 | O70: 170000 | P70: 170000 | Q70: 170000 | R70: 170000 | S70: 170000 | T70: 170000 | U70: 170000 | V70: 170000 | W70: 170000 | X70: 170000
C72: 定額減税 | D72: 60000
B74: 税金 | C74: 所得税 | D74: =SHOTOKU_ZEI(D70,D7,D72) -> 564102 | E74: =SHOTOKU_ZEI(E70,E7,E72) -> 141000 | F74: =SHOTOKU_ZEI(F70,F7,F72) -> 166627 | G74: =SHOTOKU_ZEI(G70,G7,G72) -> 166627 | H74: =SHOTOKU_ZEI(H70,H7,H72) -> 166627 | I74: =SHOTOKU_ZEI(I70,I7,I72) -> 166627 | J74: =SHOTOKU_ZEI(J70,J7,J72) -> 0 | K74: =SHOTOKU_ZEI(K70,K7,K72) -> 15978 | L74: =SHOTOKU_ZEI(L70,L7,L72) -> 13783 | M74: =SHOTOKU_ZEI(M70,M7,M72) -> 13783 | N74: =SHOTOKU_ZEI(N70,N7,N72) -> 13783 | O74: =SHOTOKU_ZEI(O70,O7,O72) -> 8678 | P74: =SHOTOKU_ZEI(P70,P7,P72) -> 8678 | Q74: =SHOTOKU_ZEI(Q70,Q7,Q72) -> 8678 | R74: =SHOTOKU_ZEI(R70,R7,R72) -> 8500 | S74: =SHOTOKU_ZEI(S70,S7,S72) -> 8500 | T74: =SHOTOKU_ZEI(T70,T7,T72) -> 8500 | U74: =SHOTOKU_ZEI(U70,U7,U72) -> 8500 | V74: =SHOTOKU_ZEI(V70,V7,V72) -> 8500 | W74: =SHOTOKU_ZEI(W70,W7,W72) -> 8500 | X74: =SHOTOKU_ZEI(X70,X7,X72) -> 8500 | Y74: =SUM(D74:X74) -> 1514471
C75: 住民税 | D75: =D70*0.1 -> 520000 | E75: 235600 | F75: 260700 | G75: 260700 | H75: 260700 | I75: 260700 | J75: 0 | K75: 31300 | L75: 27000 | M75: 27000 | N75: 27000 | O75: 17000 | P75: 17000 | Q75: 17000 | R75: 17000 | S75: 17000 | T75: 17000 | U75: 17000 | V75: 17000 | W75: 17000 | X75: 17000 | Y75: 2080700
B78: ■企業年金を一時金で受け取った場合（年金の運用は考慮していない）
E80: 1 | F80: 2 | G80: 3 | H80: 4 | I80: 5 | J80: 6 | K80: 7 | L80: 8 | M80: 9 | N80: 10 | O80: 11 | P80: 12 | Q80: 13 | R80: 14 | S80: 15 | T80: 16 | U80: 17 | V80: 18 | W80: 19 | X80: 20
D81: 2024 | E81: 2025 | F81: 2026 | G81: 2027 | H81: 2028 | I81: 2029 | J81: 2030 | K81: 2031 | L81: 2032 | M81: 2033 | N81: 2034 | O81: 2035 | P81: 2036 | Q81: 2037 | R81: 2038 | S81: 2039 | T81: 2040 | U81: 2041 | V81: 2042 | W81: 2043 | X81: 2044
D82: 59 | E82: 60 | F82: 61 | G82: 62 | H82: 63 | I82: 64 | J82: 65 | K82: 66 | L82: 67 | M82: 68 | N82: 69 | O82: 70 | P82: 71 | Q82: 72 | R82: 73 | S82: 74 | T82: 75 | U82: 76 | V82: 77 | W82: 78 | X82: 79
B84: 収入 | C84: 事業(営業等)
C85: 事業(農業)
C86: 不動産
C87: 配当
C88: 給与 | D88: 6500000 | E88: 4500000 | F88: 4500000 | G88: 4500000 | H88: 4500000 | I88: 4500000 | J88: 0 | K88: 0 | L88: 0 | M88: 0 | N88: 0 | O88: 0 | P88: 0 | Q88: 0 | R88: 0 | S88: 0 | T88: 0 | U88: 0 | V88: 0 | W88: 0 | X88: 0
C89: 雑収入(国民年金) | J89: 1900000 | K89: 1900000 | L89: 1900000 | M89: 1900000 | N89: 1900000 | O89: 1900000 | P89: 1900000 | Q89: 1900000 | R89: 1900000 | S89: 1900000 | T89: 1900000 | U89: 1900000 | V89: 1900000 | W89: 1900000 | X89: 1900000
C90: 雑収入(厚生年金)
C91: 雑収入(企業年金)
C92: 雑収入(業務)
C93: 雑収入(その他)
C94: 総合譲渡(短期)
C95: 総合譲渡(長期)
C96: 一時
C97: 年収合計 | D97: =SUM(D84:D96) -> 6500000 | E97: =SUM(E84:E96) -> 4500000 | F97: =SUM(F84:F96) -> 4500000 | G97: =SUM(G84:G96) -> 4500000 | H97: =SUM(H84:H96) -> 4500000 | I97: =SUM(I84:I96) -> 4500000 | J97: =SUM(J84:J96) -> 1900000 | K97: =SUM(K84:K96) -> 1900000 | L97: =SUM(L84:L96) -> 1900000 | M97: =SUM(M84:M96) -> 1900000 | N97: =SUM(N84:N96) -> 1900000 | O97: =SUM(O84:O96) -> 1900000 | P97: =SUM(P84:P96) -> 1900000 | Q97: =SUM(Q84:Q96) -> 1900000 | R97: =SUM(R84:R96) -> 1900000 | S97: =SUM(S84:S96) -> 1900000 | T97: =SUM(T84:T96) -> 1900000 | U97: =SUM(U84:U96) -> 1900000 | V97: =SUM(V84:V96) -> 1900000 | W97: =SUM(W84:W96) -> 1900000 | X97: =SUM(X84:X96) -> 1900000
B99: 控除 | C99: 給与所得控除 | D99: =KYUYO_SHOTOKU_KOUJO(D88) -> 440000 | E99: =KYUYO_SHOTOKU_KOUJO(E88) -> 440000 | F99: =KYUYO_SHOTOKU_KOUJO(F88) -> 440000 | G99: =KYUYO_SHOTOKU_KOUJO(G88) -> 440000 | H99: =KYUYO_SHOTOKU_KOUJO(H88) -> 440000 | I99: =KYUYO_SHOTOKU_KOUJO(I88) -> 440000 | J99: =KYUYO_SHOTOKU_KOUJO(J88) -> 0 | K99: =KYUYO_SHOTOKU_KOUJO(K88) -> 0 | L99: =KYUYO_SHOTOKU_KOUJO(L88) -> 0 | M99: =KYUYO_SHOTOKU_KOUJO(M88) -> 0 | N99: =KYUYO_SHOTOKU_KOUJO(N88) -> 0 | O99: =KYUYO_SHOTOKU_KOUJO(O88) -> 0 | P99: =KYUYO_SHOTOKU_KOUJO(P88) -> 0 | Q99: =KYUYO_SHOTOKU_KOUJO(Q88) -> 0 | R99: =KYUYO_SHOTOKU_KOUJO(R88) -> 0 | S99: =KYUYO_SHOTOKU_KOUJO(S88) -> 0 | T99: =KYUYO_SHOTOKU_KOUJO(T88) -> 0 | U99: =KYUYO_SHOTOKU_KOUJO(U88) -> 0 | V99: =KYUYO_SHOTOKU_KOUJO(V88) -> 0 | W99: =KYUYO_SHOTOKU_KOUJO(W88) -> 0 | X99: =KYUYO_SHOTOKU_KOUJO(X88) -> 0
C100: 公的年金控除 | D100: =SUM(D89:D91)-D109 -> 0 | E100: 0 | F100: 0 | G100: 0 | H100: 0 | I100: 0 | J100: 750000 | K100: 750000 | L100: 750000 | M100: 750000 | N100: 750000 | O100: 750000 | P100: 750000 | Q100: 750000 | R100: 750000 | S100: 750000 | T100: 750000 | U100: 750000 | V100: 750000 | W100: 750000 | X100: 750000
C101: 雑収入(業務)経費
C102: その他控除
B104: 所得 | C104: 事業(営業等)
C105: 事業(農業)
C106: 不動産
C107: 配当
C108: 給与 | D108: =D88-D99 -> 6060000 | E108: 4060000 | F108: 4060000 | G108: 4060000 | H108: 4060000 | I108: 4060000 | J108: 0 | K108: 0 | L108: 0 | M108: 0 | N108: 0 | O108: 0 | P108: 0 | Q108: 0 | R108: 0 | S108: 0 | T108: 0 | U108: 0 | V108: 0 | W108: 0 | X108: 0
C109: 雑所得(公的年金等) | D109: =KOUTEKI_NENKIN_SHOTOKU(SUM(D89:D91),D104+D111,D82) -> 0 | E109: =KOUTEKI_NENKIN_SHOTOKU(SUM(E89:E91),E104+E111,E82) -> 0 | F109: =KOUTEKI_NENKIN_SHOTOKU(SUM(F89:F91),F104+F111,F82) -> 0 | G109: =KOUTEKI_NENKIN_SHOTOKU(SUM(G89:G91),G104+G111,G82) -> 0 | H109: =KOUTEKI_NENKIN_SHOTOKU(SUM(H89:H91),H104+H111,H82) -> 0 | I109: =KOUTEKI_NENKIN_SHOTOKU(SUM(I89:I91),I104+I111,I82) -> 0 | J109: =KOUTEKI_NENKIN_SHOTOKU(SUM(J89:J91),J104+J111,J82) -> 1150000 | K109: =KOUTEKI_NENKIN_SHOTOKU(SUM(K89:K91),K104+K111,K82) -> 1150000 | L109: =KOUTEKI_NENKIN_SHOTOKU(SUM(L89:L91),L104+L111,L82) -> 1150000 | M109: =KOUTEKI_NENKIN_SHOTOKU(SUM(M89:M91),M104+M111,M82) -> 1150000 | N109: =KOUTEKI_NENKIN_SHOTOKU(SUM(N89:N91),N104+N111,N82) -> 1150000 | O109: =KOUTEKI_NENKIN_SHOTOKU(SUM(O89:O91),O104+O111,O82) -> 1150000 | P109: =KOUTEKI_NENKIN_SHOTOKU(SUM(P89:P91),P104+P111,P82) -> 1150000 | Q109: =KOUTEKI_NENKIN_SHOTOKU(SUM(Q89:Q91),Q104+Q111,Q82) -> 1150000 | R109: =KOUTEKI_NENKIN_SHOTOKU(SUM(R89:R91),R104+R111,R82) -> 1150000 | S109: =KOUTEKI_NENKIN_SHOTOKU(SUM(S89:S91),S104+S111,S82) -> 1150000 | T109: =KOUTEKI_NENKIN_SHOTOKU(SUM(T89:T91),T104+T111,T82) -> 1150000 | U109: =KOUTEKI_NENKIN_SHOTOKU(SUM(U89:U91),U104+U111,U82) -> 1150000 | V109: =KOUTEKI_NENKIN_SHOTOKU(SUM(V89:V91),V104+V111,V82) -> 1150000 | W109: =KOUTEKI_NENKIN_SHOTOKU(SUM(W89:W91),W104+W111,W82) -> 1150000 | X109: =KOUTEKI_NENKIN_SHOTOKU(SUM(X89:X91),X104+X111,X82) -> 1150000
C110: 雑所得(業務)
C111: 雑所得(その他) | D111: =MAX(0,D92-D101-D102) -> 0 | E111: 0 | F111: 0 | G111: 0 | H111: 0 | I111: 0 | J111: 0 | K111: 0 | L111: 0 | M111: 0 | N111: 0 | O111: 0 | P111: 0 | Q111: 0 | R111: 0 | S111: 0 | T111: 0 | U111: 0 | V111: 0 | W111: 0 | X111: 0
C112: 総合譲渡・一時 | D112: =D94+(D95+D96)/2 -> 0 | E112: 0 | F112: 0 | G112: 0 | H112: 0 | I112: 0 | J112: 0 | K112: 0 | L112: 0 | M112: 0 | N112: 0 | O112: 0 | P112: 0 | Q112: 0 | R112: 0 | S112: 0 | T112: 0 | U112: 0 | V112: 0 | W112: 0 | X112: 0
C113: 所得合計 | D113: =SUM(D104:D112) -> 6060000 | E113: =SUM(E104:E112) -> 4060000 | F113: =SUM(F104:F112) -> 4060000 | G113: =SUM(G104:G112) -> 4060000 | H113: =SUM(H104:H112) -> 4060000 | I113: =SUM(I104:I112) -> 4060000 | J113: =SUM(J104:J112) -> 1150000 | K113: =SUM(K104:K112) -> 1150000 | L113: =SUM(L104:L112) -> 1150000 | M113: =SUM(M104:M112) -> 1150000 | N113: =SUM(N104:N112) -> 1150000 | O113: =SUM(O104:O112) -> 1150000 | P113: =SUM(P104:P112) -> 1150000 | Q113: =SUM(Q104:Q112) -> 1150000 | R113: =SUM(R104:R112) -> 1150000 | S113: =SUM(S104:S112) -> 1150000 | T113: =SUM(T104:T112) -> 1150000 | U113: =SUM(U104:U112) -> 1150000 | V113: =SUM(V104:V112) -> 1150000 | W113: =SUM(W104:W112) -> 1150000 | X113: =SUM(X104:X112) -> 1150000
B115: 配偶者 | C115: 配偶者収入(給与) | D115: 0 | E115: 0 | F115: 0 | G115: 0 | H115: 0 | I115: 0 | J115: 0 | K115: 0 | L115: 0 | M115: 0 | N115: 0 | O115: 0 | P115: 0 | Q115: 0 | R115: 0 | S115: 0 | T115: 0 | U115: 0 | V115: 0 | W115: 0 | X115: 0
C116: 配偶者収入(年金) | D116: 0 | E116: 0 | F116: 0 | G116: 0 | H116: 0 | I116: 0 | J116: 800000 | K116: 800000 | L116: 800000 | M116: 800000 | N116: 800000 | O116: 800000 | P116: 800000 | Q116: 800000 | R116: 800000 | S116: 800000 | T116: 800000 | U116: 800000 | V116: 800000 | W116: 800000 | X116: 800000
C117: 配偶者社会保険料 | D117: 0 | E117: 0 | F117: 0 | G117: 0 | H117: 0 | I117: 0 | J117: 0 | K117: 0 | L117: 0 | M117: 0 | N117: 0 | O117: 0 | P117: 0 | Q117: 0 | R117: 0 | S117: 0 | T117: 0 | U117: 0 | V117: 0 | W117: 0 | X117: 0
C118: 配偶者所得(給与) | D118: =D115-KYUYO_SHOTOKU_KOUJO(D115) -> 0 | E118: =E115-KYUYO_SHOTOKU_KOUJO(E115) -> 0 | F118: =F115-KYUYO_SHOTOKU_KOUJO(F115) -> 0 | G118: =G115-KYUYO_SHOTOKU_KOUJO(G115) -> 0 | H118: =H115-KYUYO_SHOTOKU_KOUJO(H115) -> 0 | I118: =I115-KYUYO_SHOTOKU_KOUJO(I115) -> 0 | J118: =J115-KYUYO_SHOTOKU_KOUJO(J115) -> 0 | K118: =K115-KYUYO_SHOTOKU_KOUJO(K115) -> 0 | L118: =L115-KYUYO_SHOTOKU_KOUJO(L115) -> 0 | M118: =M115-KYUYO_SHOTOKU_KOUJO(M115) -> 0 | N118: =N115-KYUYO_SHOTOKU_KOUJO(N115) -> 0 | O118: =O115-KYUYO_SHOTOKU_KOUJO(O115) -> 0 | P118: =P115-KYUYO_SHOTOKU_KOUJO(P115) -> 0 | Q118: =Q115-KYUYO_SHOTOKU_KOUJO(Q115) -> 0 | R118: =R115-KYUYO_SHOTOKU_KOUJO(R115) -> 0 | S118: =S115-KYUYO_SHOTOKU_KOUJO(S115) -> 0 | T118: =T115-KYUYO_SHOTOKU_KOUJO(T115) -> 0 | U118: =U115-KYUYO_SHOTOKU_KOUJO(U115) -> 0 | V118: =V115-KYUYO_SHOTOKU_KOUJO(V115) -> 0 | W118: =W115-KYUYO_SHOTOKU_KOUJO(W115) -> 0 | X118: =X115-KYUYO_SHOTOKU_KOUJO(X115) -> 0
C119: 配偶者所得(年金) | D119: =KOUTEKI_NENKIN_SHOTOKU(D116,D116,D82) -> 0 | E119: =KOUTEKI_NENKIN_SHOTOKU(E116,E116,E82) -> 0 | F119: =KOUTEKI_NENKIN_SHOTOKU(F116,F116,F82) -> 0 | G119: =KOUTEKI_NENKIN_SHOTOKU(G116,G116,G82) -> 0 | H119: =KOUTEKI_NENKIN_SHOTOKU(H116,H116,H82) -> 0 | I119: =KOUTEKI_NENKIN_SHOTOKU(I116,I116,I82) -> 0 | J119: =KOUTEKI_NENKIN_SHOTOKU(J116,J116,J82) -> 0 | K119: =KOUTEKI_NENKIN_SHOTOKU(K116,K116,K82) -> 0 | L119: =KOUTEKI_NENKIN_SHOTOKU(L116,L116,L82) -> 0 | M119: =KOUTEKI_NENKIN_SHOTOKU(M116,M116,M82) -> 0 | N119: =KOUTEKI_NENKIN_SHOTOKU(N116,N116,N82) -> 0 | O119: =KOUTEKI_NENKIN_SHOTOKU(O116,O116,O82) -> 0 | P119: =KOUTEKI_NENKIN_SHOTOKU(P116,P116,P82) -> 0 | Q119: =KOUTEKI_NENKIN_SHOTOKU(Q116,Q116,Q82) -> 0 | R119: =KOUTEKI_NENKIN_SHOTOKU(R116,R116,R82) -> 0 | S119: =KOUTEKI_NENKIN_SHOTOKU(S116,S116,S82) -> 0 | T119: =KOUTEKI_NENKIN_SHOTOKU(T116,T116,T82) -> 0 | U119: =KOUTEKI_NENKIN_SHOTOKU(U116,U116,U82) -> 0 | V119: =KOUTEKI_NENKIN_SHOTOKU(V116,V116,V82) -> 0 | W119: =KOUTEKI_NENKIN_SHOTOKU(W116,W116,W82) -> 0 | X119: =KOUTEKI_NENKIN_SHOTOKU(X116,X116,X82) -> 0
C120: 配偶者所得(合計) | D120: =SUM(D118:D119) -> 0 | E120: 0 | F120: 0 | G120: 0 | H120: 0 | I120: 0 | J120: 0 | K120: 0 | L120: 0 | M120: 0 | N120: 0 | O120: 0 | P120: 0 | Q120: 0 | R120: 0 | S120: 0 | T120: 0 | U120: 0 | V120: 0 | W120: 0 | X120: 0
C121: 配偶者前年住民税 | D121: =D120*0.1 -> 0 | E121: =E120*0.1 -> 0 | F121: 0 | G121: 0 | H121: 0 | I121: 0 | J121: 0 | K121: 0 | L121: 0 | M121: 0 | N121: 0 | O121: 0 | P121: 0 | Q121: 0 | R121: 0 | S121: 0 | T121: 0 | U121: 0 | V121: 0 | W121: 0 | X121: 0
B123: その他 | C123: 医療費
C124: ふるさと納税
B126: 所得 | C126: 社会保険料控除(企業健康保険) | F126: 0 | G126: 0 | H126: 0 | I126: 0 | J126: 0 | K126: 0 | L126: 0 | M126: 0 | N126: 0 | O126: 0 | P126: 0 | Q126: 0 | R126: 0 | S126: 0 | T126: 0 | U126: 0 | V126: 0 | W126: 0 | X126: 0 | Y126: =SUM(E126:X126) -> 0
B127: 控除 | C127: 社会保険料控除(国民健康保険) | E127: =KOKUMIN_KENKOU_HOKEN(D113,$D$2,E82) -> 843703 | F127: =KOKUMIN_KENKOU_HOKEN(E113,$D$2,F82) -> 592703 | G127: =KOKUMIN_KENKOU_HOKEN(F113,$D$2,G82) -> 592703 | H127: =KOKUMIN_KENKOU_HOKEN(G113,$D$2,H82) -> 592703 | I127: =KOKUMIN_KENKOU_HOKEN(H113,$D$2,I82) -> 592703 | J127: =KOKUMIN_KENKOU_HOKEN(I113,$D$2,J82) -> 501576 | K127: =KOKUMIN_KENKOU_HOKEN(J113,$D$2,K82) -> 191661 | L127: =KOKUMIN_KENKOU_HOKEN(K113,$D$2,L82) -> 191661 | M127: =KOKUMIN_KENKOU_HOKEN(L113,$D$2,M82) -> 191661 | N127: =KOKUMIN_KENKOU_HOKEN(M113,$D$2,N82) -> 191661 | O127: =KOKUMIN_KENKOU_HOKEN(N113,$D$2,O82) -> 191661 | P127: =KOKUMIN_KENKOU_HOKEN(O113,$D$2,P82) -> 191661 | Q127: =KOKUMIN_KENKOU_HOKEN(P113,$D$2,Q82) -> 191661 | R127: =KOKUMIN_KENKOU_HOKEN(Q113,$D$2,R82) -> 191661 | S127: =KOKUMIN_KENKOU_HOKEN(R113,$D$2,S82) -> 191661 | T127: =KOKUMIN_KENKOU_HOKEN(S113,$D$2,T82) -> 191661 | U127: =KOKUMIN_KENKOU_HOKEN(T113,$D$2,U82) -> 191661 | V127: =KOKUMIN_KENKOU_HOKEN(U113,$D$2,V82) -> 191661 | W127: =KOKUMIN_KENKOU_HOKEN(V113,$D$2,W82) -> 191661 | X127: =KOKUMIN_KENKOU_HOKEN(W113,$D$2,X82) -> 191661 | Y127: =SUM(E127:X127) -> 6399345
C128: 社会保険料控除(介護保険) | E128: =KAIGO_HOKEN(E113,E82,D149,D121) -> 0 | F128: =KAIGO_HOKEN(F113,F82,E149,E121) -> 0 | G128: =KAIGO_HOKEN(G113,G82,F149,F121) -> 0 | H128: =KAIGO_HOKEN(H113,H82,G149,G121) -> 0 | I128: =KAIGO_HOKEN(I113,I82,H149,H121) -> 0 | J128: =KAIGO_HOKEN(J113,J82,I149,I121) -> 84480 | K128: =KAIGO_HOKEN(K113,K82,J149,J121) -> 37248 | L128: =KAIGO_HOKEN(L113,L82,K149,K121) -> 84480 | M128: =KAIGO_HOKEN(M113,M82,L149,L121) -> 84480 | N128: =KAIGO_HOKEN(N113,N82,M149,M121) -> 84480 | O128: =KAIGO_HOKEN(O113,O82,N149,N121) -> 84480 | P128: =KAIGO_HOKEN(P113,P82,O149,O121) -> 37248 | Q128: =KAIGO_HOKEN(Q113,Q82,P149,P121) -> 37248 | R128: =KAIGO_HOKEN(R113,R82,Q149,Q121) -> 37248 | S128: =KAIGO_HOKEN(S113,S82,R149,R121) -> 37248 | T128: =KAIGO_HOKEN(T113,T82,S149,S121) -> 37248 | U128: =KAIGO_HOKEN(U113,U82,T149,T121) -> 37248 | V128: =KAIGO_HOKEN(V113,V82,U149,U121) -> 37248 | W128: =KAIGO_HOKEN(W113,W82,V149,V121) -> 37248 | X128: =KAIGO_HOKEN(X113,X82,W149,W121) -> 37248 | Y128: 794880
C129: その他社会保険料控除
C130: 小規模企業共済等掛金控除
C131: 生命保険料控除
C132: 地震保険料控除
C133: 寡婦､ ひとり親控除
C134: 勤労学生、障害者控除
C135: 配偶者控除 | D135: =HAIGUSHA_KOUJO(D113,D82) -> 380000 | E135: =HAIGUSHA_KOUJO(E113,E82) -> 380000 | F135: =HAIGUSHA_KOUJO(F113,F82) -> 380000 | G135: =HAIGUSHA_KOUJO(G113,G82) -> 380000 | H135: =HAIGUSHA_KOUJO(H113,H82) -> 380000 | I135: =HAIGUSHA_KOUJO(I113,I82) -> 380000 | J135: =HAIGUSHA_KOUJO(J113,J82) -> 380000 | K135: =HAIGUSHA_KOUJO(K113,K82) -> 380000 | L135: =HAIGUSHA_KOUJO(L113,L82) -> 380000 | M135: =HAIGUSHA_KOUJO(M113,M82) -> 380000 | N135: =HAIGUSHA_KOUJO(N113,N82) -> 380000 | O135: =HAIGUSHA_KOUJO(O113,O82) -> 480000 | P135: =HAIGUSHA_KOUJO(P113,P82) -> 480000 | Q135: =HAIGUSHA_KOUJO(Q113,Q82) -> 480000 | R135: =HAIGUSHA_KOUJO(R113,R82) -> 480000 | S135: =HAIGUSHA_KOUJO(S113,S82) -> 480000 | T135: =HAIGUSHA_KOUJO(T113,T82) -> 480000 | U135: =HAIGUSHA_KOUJO(U113,U82) -> 480000 | V135: =HAIGUSHA_KOUJO(V113,V82) -> 480000 | W135: =HAIGUSHA_KOUJO(W113,W82) -> 480000 | X135: =HAIGUSHA_KOUJO(X113,X82) -> 480000
C136: 配偶者特別控除 | D136: =HAIGUSHA_TOKUBETU_KOUJO(D113,D120) -> 0 | E136: =HAIGUSHA_TOKUBETU_KOUJO(E113,E120) -> 0 | F136: =HAIGUSHA_TOKUBETU_KOUJO(F113,F120) -> 0 | G136: =HAIGUSHA_TOKUBETU_KOUJO(G113,G120) -> 0 | H136: =HAIGUSHA_TOKUBETU_KOUJO(H113,H120) -> 0 | I136: =HAIGUSHA_TOKUBETU_KOUJO(I113,I120) -> 0 | J136: =HAIGUSHA_TOKUBETU_KOUJO(J113,J120) -> 0 | K136: =HAIGUSHA_TOKUBETU_KOUJO(K113,K120) -> 0 | L136: =HAIGUSHA_TOKUBETU_KOUJO(L113,L120) -> 0 | M136: =HAIGUSHA_TOKUBETU_KOUJO(M113,M120) -> 0 | N136: =HAIGUSHA_TOKUBETU_KOUJO(N113,N120) -> 0 | O136: =HAIGUSHA_TOKUBETU_KOUJO(O113,O120) -> 0 | P136: =HAIGUSHA_TOKUBETU_KOUJO(P113,P120) -> 0 | Q136: =HAIGUSHA_TOKUBETU_KOUJO(Q113,Q120) -> 0 | R136: =HAIGUSHA_TOKUBETU_KOUJO(R113,R120) -> 0 | S136: =HAIGUSHA_TOKUBETU_KOUJO(S113,S120) -> 0 | T136: =HAIGUSHA_TOKUBETU_KOUJO(T113,T120) -> 0 | U136: =HAIGUSHA_TOKUBETU_KOUJO(U113,U120) -> 0 | V136: =HAIGUSHA_TOKUBETU_KOUJO(V113,V120) -> 0 | W136: =HAIGUSHA_TOKUBETU_KOUJO(W113,W120) -> 0 | X136: =HAIGUSHA_TOKUBETU_KOUJO(X113,X120) -> 0
C137: 扶養控除
C138: 基礎控除 | D138: =KISO_KOUJO(D113) -> 480000 | E138: =KISO_KOUJO(E113) -> 480000 | F138: =KISO_KOUJO(F113) -> 480000 | G138: =KISO_KOUJO(G113) -> 480000 | H138: =KISO_KOUJO(H113) -> 480000 | I138: =KISO_KOUJO(I113) -> 480000 | J138: =KISO_KOUJO(J113) -> 480000 | K138: =KISO_KOUJO(K113) -> 480000 | L138: =KISO_KOUJO(L113) -> 480000 | M138: =KISO_KOUJO(M113) -> 480000 | N138: =KISO_KOUJO(N113) -> 480000 | O138: =KISO_KOUJO(O113) -> 480000 | P138: =KISO_KOUJO(P113) -> 480000 | Q138: =KISO_KOUJO(Q113) -> 480000 | R138: =KISO_KOUJO(R113) -> 480000 | S138: =KISO_KOUJO(S113) -> 480000 | T138: =KISO_KOUJO(T113) -> 480000 | U138: =KISO_KOUJO(U113) -> 480000 | V138: =KISO_KOUJO(V113) -> 480000 | W138: =KISO_KOUJO(W113) -> 480000 | X138: =KISO_KOUJO(X113) -> 480000
C139: 雑損控除
C140: 医療費控除 | D140: =IRYOUHI_KOUJO(D123,D113) -> 0 | E140: =IRYOUHI_KOUJO(E123,E113) -> 0 | F140: =IRYOUHI_KOUJO(F123,F113) -> 0 | G140: =IRYOUHI_KOUJO(G123,G113) -> 0 | H140: =IRYOUHI_KOUJO(H123,H113) -> 0 | I140: =IRYOUHI_KOUJO(I123,I113) -> 0 | J140: =IRYOUHI_KOUJO(J123,J113) -> 0 | K140: =IRYOUHI_KOUJO(K123,K113) -> 0 | L140: =IRYOUHI_KOUJO(L123,L113) -> 0 | M140: =IRYOUHI_KOUJO(M123,M113) -> 0 | N140: =IRYOUHI_KOUJO(N123,N113) -> 0 | O140: =IRYOUHI_KOUJO(O123,O113) -> 0 | P140: =IRYOUHI_KOUJO(P123,P113) -> 0 | Q140: =IRYOUHI_KOUJO(Q123,Q113) -> 0 | R140: =IRYOUHI_KOUJO(R123,R113) -> 0 | S140: =IRYOUHI_KOUJO(S123,S113) -> 0 | T140: =IRYOUHI_KOUJO(T123,T113) -> 0 | U140: =IRYOUHI_KOUJO(U123,U113) -> 0 | V140: =IRYOUHI_KOUJO(V123,V113) -> 0 | W140: =IRYOUHI_KOUJO(W123,W113) -> 0 | X140: =IRYOUHI_KOUJO(X123,X113) -> 0
C141: 寄付金控除 | D141: =MAX(D124-2000,0) -> 0 | E141: =MAX(E124-2000,0) -> 0 | F141: 0 | G141: 0 | H141: 0 | I141: 0 | J141: 0 | K141: 0 | L141: 0 | M141: 0 | N141: 0 | O141: 0 | P141: 0 | Q141: 0 | R141: 0 | S141: 0 | T141: 0 | U141: 0 | V141: 0 | W141: 0 | X141: 0
C142: 控除合計 | D142: =SUM(D126:D141) -> 860000 | E142: =SUM(E126:E141) -> 1703703 | F142: =SUM(F126:F141) -> 1452703 | G142: =SUM(G126:G141) -> 1452703 | H142: =SUM(H126:H141) -> 1452703 | I142: =SUM(I126:I141) -> 1452703 | J142: =SUM(J126:J141) -> 1446056 | K142: =SUM(K126:K141) -> 1088909 | L142: =SUM(L126:L141) -> 1136141 | M142: =SUM(M126:M141) -> 1136141 | N142: =SUM(N126:N141) -> 1136141 | O142: =SUM(O126:O141) -> 1236141 | P142: =SUM(P126:P141) -> 1188909 | Q142: =SUM(Q126:Q141) -> 1188909 | R142: =SUM(R126:R141) -> 1188909 | S142: =SUM(S126:S141) -> 1188909 | T142: =SUM(T126:T141) -> 1188909 | U142: =SUM(U126:U141) -> 1188909 | V142: =SUM(V126:V141) -> 1188909 | W142: =SUM(W126:W141) -> 1188909 | X142: =SUM(X126:X141) -> 1188909
B144: 課税対象 | C144: 課税対象 | D144: =ROUNDDOWN(MAX(D113-D142,0),-3) -> 5200000 | E144: 2356000 | F144: 2607000 | G144: 2607000 | H144: 2607000 | I144: 2607000 | J144: 0 | K144: 61000 | L144: 13000 | M144: 13000 | N144: 13000 | O144: 0 | P144: 0 | Q144: 0 | R144: 0 | S144: 0 | T144: 0 | U144: 0 | V144: 0 | W144: 0 | X144: 0
C146: 定額減税 | D146: 60000
B148: 税金 | C148: 所得税 | D148: =SHOTOKU_ZEI(D144,D81,D146) -> 564102 | E148: =SHOTOKU_ZEI(E144,E81,E146) -> 141000 | F148: =SHOTOKU_ZEI(F144,F81,F146) -> 166627 | G148: =SHOTOKU_ZEI(G144,G81,G146) -> 166627 | H148: =SHOTOKU_ZEI(H144,H81,H146) -> 166627 | I148: =SHOTOKU_ZEI(I144,I81,I146) -> 166627 | J148: =SHOTOKU_ZEI(J144,J81,J146) -> 0 | K148: =SHOTOKU_ZEI(K144,K81,K146) -> 3114 | L148: =SHOTOKU_ZEI(L144,L81,L146) -> 663 | M148: =SHOTOKU_ZEI(M144,M81,M146) -> 663 | N148: =SHOTOKU_ZEI(N144,N81,N146) -> 663 | O148: =SHOTOKU_ZEI(O144,O81,O146) -> 0 | P148: =SHOTOKU_ZEI(P144,P81,P146) -> 0 | Q148: =SHOTOKU_ZEI(Q144,Q81,Q146) -> 0 | R148: =SHOTOKU_ZEI(R144,R81,R146) -> 0 | S148: =SHOTOKU_ZEI(S144,S81,S146) -> 0 | T148: =SHOTOKU_ZEI(T144,T81,T146) -> 0 | U148: =SHOTOKU_ZEI(U144,U81,U146) -> 0 | V148: =SHOTOKU_ZEI(V144,V81,V146) -> 0 | W148: =SHOTOKU_ZEI(W144,W81,W146) -> 0 | X148: =SHOTOKU_ZEI(X144,X81,X146) -> 0 | Y148: =SUM(D148:X148) -> 1376713
C149: 住民税 | D149: =D144*0.1 -> 520000 | E149: 235600 | F149: 260700 | G149: 260700 | H149: 260700 | I149: 260700 | J149: 0 | K149: 6100 | L149: 1300 | M149: 1300 | N149: 1300 | O149: 0 | P149: 0 | Q149: 0 | R149: 0 | S149: 0 | T149: 0 | U149: 0 | V149: 0 | W149: 0 | X149: 0 | Y149: 1808400
B152: ■差額
C154: 社会保険料控除(企業健康保険) | E154: =E52-E126 -> 0 | F154: =F52-F126 -> 0 | G154: 0 | H154: 0 | I154: 0 | J154: 0 | K154: 0 | L154: 0 | M154: 0 | N154: 0 | O154: 0 | P154: 0 | Q154: 0 | R154: 0 | S154: 0 | T154: 0 | U154: 0 | V154: 0 | W154: 0 | X154: 0 | Y154: =SUM(E154:X154) -> 0
C155: 社会保険料控除(国民健康保険) | E155: =E53-E127 -> 0 | F155: 0 | G155: 0 | H155: 0 | I155: 0 | J155: 0 | K155: 31950 | L155: 31950 | M155: 31950 | N155: 31950 | O155: 31950 | P155: 31950 | Q155: 31950 | R155: 31950 | S155: 31950 | T155: 31950 | U155: 31950 | V155: 31950 | W155: 31950 | X155: 31950 | Y155: =SUM(E155:X155) -> 447300
C156: 社会保険料控除(介護保険) | E156: =E54-E128 -> 0 | F156: 0 | G156: 0 | H156: 0 | I156: 0 | J156: 11520 | K156: 15360 | L156: 11520 | M156: 11520 | N156: 11520 | O156: 11520 | P156: 58752 | Q156: 58752 | R156: 58752 | S156: 58752 | T156: 58752 | U156: 58752 | V156: 58752 | W156: 58752 | X156: 58752 | Y156: 601728
C157: 所得税 | E157: =E74-E148 -> 0 | F157: =F74-F148 -> 0 | G157: 0 | H157: 0 | I157: 0 | J157: 0 | K157: 12864 | L157: 13120 | M157: 13120 | N157: 13120 | O157: 8678 | P157: 8678 | Q157: 8678 | R157: 8500 | S157: 8500 | T157: 8500 | U157: 8500 | V157: 8500 | W157: 8500 | X157: 8500 | Y157: 137758
C158: 住民税 | E158: =E75-E149 -> 0 | F158: 0 | G158: 0 | H158: 0 | I158: 0 | J158: 0 | K158: 25200 | L158: 25700 | M158: 25700 | N158: 25700 | O158: 17000 | P158: 17000 | Q158: 17000 | R158: 17000 | S158: 17000 | T158: 17000 | U158: 17000 | V158: 17000 | W158: 17000 | X158: 17000 | Y158: 272300
Y159: =SUM(Y154:Y158) -> 1459086
B161: ※ 健康保険料、介護保険料は、2024年(令和6年)の広島県の数値を参考にしています。
B162: ※ 住民税は単純に、所得税の課税対象額に 10% をかけていますが、実際は多少異なります。
B163: ※ 計算式は誤入力などで誤っている可能性があります。あくまで参考程度に自己の責任の範囲で参照ください。
